bitfinex/quotes_BTCUSD_20250331
["timestamp","ask_amount","ask_price","bid_price","bid_amount"]
[1743420497226,0.255682,82133.0,82124.0,0.26516386]
[1743420497590,0.543512,82132.0,82124.0,0.26516386]
[1743420497863,0.243522,82128.0,82124.0,0.26516386]
[1743420498333,0.243525,82127.0,82124.0,0.26516386]
[1743420499491,0.243526,82127.0,82124.0,0.26516386]
[1743420499695,0.012176,82128.0,82124.0,0.14256]
[1743420499974,0.243525,82127.0,82123.0,0.0766]
[1743420500919,0.243522,82128.0,82123.0,0.0766]
[1743420501264,0.25545505,82133.0,82123.0,0.0766]
[1743420501486,0.01194705,82133.0,82124.0,0.12503904]
[1743420501630,0.3,82133.0,82124.0,0.12503904]
[1743420501836,0.01141144,82132.0,82125.0,0.077]
[1743420502038,0.01141144,82132.0,82126.0,0.12260386]
[1743420503228,0.25564457,82133.0,82126.0,0.12260386]
[1743420503540,0.243508,82133.0,82126.0,0.12260386]
[1743420503740,0.012175,82132.0,82126.0,0.12260386]
[1743420503946,0.543519,82129.0,82126.0,0.12260386]
[1743420504386,0.243522,82128.0,82125.0,0.077]
[1743420504586,0.243525,82127.0,82125.0,0.077]
[1743420504786,0.3,82127.0,82125.0,0.077]
[1743420505189,0.243526,82127.0,82125.0,0.077]
[1743420505392,0.01140911,82126.0,82125.0,0.077]
[1743420508302,0.01140911,82126.0,82125.0,0.19960386]
[1743420513575,0.01140911,82126.0,82125.0,0.20203888]
[1743420515622,0.03422959,82126.0,82125.0,0.20203888]
[1743420518743,0.03422959,82126.0,82125.0,0.83419888]
[1743420518944,0.03422959,82126.0,82125.0,0.83176386]
[1743420518945,0.01140911,82126.0,82125.0,0.83176386]
[1743420520486,0.01140911,82126.0,82125.0,0.97428386]
[1743420520880,0.03423965,82126.0,82125.0,0.97428386]
[1743420525207,0.03423965,82126.0,82125.0,1.02388386]
[1743420525614,0.03423965,82126.0,82125.0,1.02384386]
[1743420525990,0.04654912,82126.0,82125.0,0.83176386]
[1743420526568,0.04654912,82126.0,82125.0,0.75476386]
[1743420532901,0.03423965,82126.0,82125.0,0.75476386]
[1743420534004,0.03423965,82126.0,82125.0,0.83286386]
[1743420534207,0.02283054,82126.0,82125.0,0.83286386]
[1743420534423,0.3,82139.0,82125.0,0.83286386]
[1743420534589,0.3,82139.0,82126.0,0.12503872]
[1743420534805,0.243484,82141.0,82126.0,0.12503872]
[1743420535009,0.3,82140.0,82126.0,0.12503872]
[1743420535208,0.31225759,82140.0,82126.0,0.12503872]
[1743420535883,0.002,82139.0,82126.0,0.12503872]
[1743420536281,0.01225759,82140.0,82126.0,0.12503872]
[1743420536479,0.002,82139.0,82126.0,0.12503872]
[1743420536865,0.3,82141.0,82126.0,0.12503872]
[1743420537068,0.15827235,82140.0,82126.0,0.12260386]
[1743420537272,0.3,82137.0,82126.0,0.12260386]
[1743420538309,0.3,82135.0,82126.0,0.12260386]
[1743420539209,0.243504,82134.0,82126.0,0.12260386]
[1743420539416,0.543498,82136.0,82126.0,0.12260386]
[1743420539759,0.543504,82134.0,82133.0,0.02402916]
[1743420539985,0.555679,82134.0,82133.0,0.02402916]
[1743420540381,0.556679,82134.0,82133.0,0.02402916]
[1743420540702,0.544504,82134.0,82133.0,0.02402916]
[1743420540896,0.3,82134.0,82133.0,0.02402916]
[1743420541099,0.543504,82134.0,82133.0,0.02402916]
[1743420541298,0.301,82134.0,82133.0,0.02402916]
[1743420541528,0.302,82134.0,82133.0,0.02402916]
[1743420541731,0.545504,82134.0,82133.0,0.02402916]
[1743420541929,0.544504,82134.0,82133.0,0.02402916]
[1743420542222,0.545504,82134.0,82133.0,0.02402916]
[1743420542384,0.302,82134.0,82133.0,0.02402916]
[1743420543223,0.545504,82134.0,82133.0,0.02402916]
[1743420543600,0.557679,82134.0,82133.0,0.02402916]
[1743420544144,0.545504,82134.0,82133.0,0.02402916]
[1743420544645,0.302,82134.0,82133.0,0.02402916]
[1743420546334,0.545504,82134.0,82133.0,0.02402916]
[1743420546534,0.302,82134.0,82133.0,0.02402916]
[1743420547283,0.002,82134.0,82133.0,0.14663302]
[1743420547407,0.002,82134.0,82133.0,0.22773302]
[1743420548312,0.245504,82134.0,82133.0,0.02402916]
[1743420548541,0.002,82134.0,82133.0,0.02402916]
[1743420548754,0.557679,82134.0,82133.0,0.02402916]
[1743420554343,0.243527,82127.0,82125.0,0.63216]
[1743420554478,0.243527,82127.0,82126.0,0.12260386]
[1743420555324,0.255703,82127.0,82126.0,0.02447518]
[1743420555872,0.555703,82127.0,82126.0,0.02447518]
[1743420559628,0.255717,82122.0,82121.0,0.0783]
[1743420559760,0.555731,82117.0,82116.0,0.002]
[1743420560177,0.59377505,82117.0,82116.0,0.002]
[1743420560686,0.61284361,82117.0,82116.0,0.002]
[1743420561085,0.61284361,82117.0,82116.0,0.0021407]
[1743420561289,0.57479956,82117.0,82116.0,0.0021407]
[1743420561714,0.59591352,82117.0,82116.0,0.0021407]
[1743420562133,0.58694572,82117.0,82116.0,0.0021407]
[1743420567574,0.56787716,82117.0,82116.0,0.0021407]
[1743420568317,0.69048102,82117.0,82116.0,0.0021407]
[1743420568601,0.69148102,82117.0,82116.0,0.0021407]
[1743420568967,0.56887716,82117.0,82116.0,0.0021407]
[1743420569163,0.61547716,82117.0,82116.0,0.0021407]
[1743420580603,0.6345471,82117.0,82116.0,0.0021407]
[1743420580984,0.67248863,82117.0,82116.0,0.0021407]
[1743420581186,0.6345471,82117.0,82116.0,0.0021407]
[1743420581387,0.79509305,82117.0,82116.0,0.0021407]
[1743420581617,0.75715096,82117.0,82116.0,0.0021407]
[1743420581817,0.66785363,82117.0,82116.0,0.0021407]
[1743420582300,0.62991196,82117.0,82116.0,0.0021407]
[1743420584851,1.04331196,82117.0,82116.0,0.0021407]
[1743420585326,1.0812743,82117.0,82116.0,0.0021407]
[1743420587877,1.0346743,82117.0,82116.0,0.0021407]
[1743420589822,1.01560436,82117.0,82116.0,0.0021407]
[1743420590246,0.97764202,82117.0,82116.0,0.0021407]
[1743420590651,0.56424202,82117.0,82116.0,0.0021407]
[1743420592333,0.60227225,82117.0,82116.0,0.0021407]
[1743420592513,0.56424202,82117.0,82116.0,0.0021407]
[1743420593151,0.60227255,82117.0,82116.0,0.0021407]
[1743420593517,0.72487641,82117.0,82116.0,0.0021407]
[1743420593710,0.60227255,82117.0,82116.0,0.0021407]
[1743420596341,1.01567255,82117.0,82116.0,0.0021407]
[1743420598007,1.0302134,82117.0,82116.0,0.0021407]
[1743420600485,1.01567255,82117.0,82116.0,0.0021407]
[1743420600699,1.03474242,82117.0,82116.0,0.0021407]
[1743420601087,1.15734628,82117.0,82116.0,0.0021407]
[1743420601867,1.03474242,82117.0,82116.0,0.0021407]
[1743420606279,0.62134242,82117.0,82116.0,0.0021407]
[1743420607840,0.60227255,82117.0,82116.0,0.0021407]
[1743420610091,0.35117669,82117.0,82116.0,0.0021407]
[1743420610269,0.60690769,82117.0,82116.0,0.0021407]
[1743420611719,0.35117669,82117.0,82116.0,0.0833407]
[1743420612143,0.35117669,82117.0,82116.0,0.1305407]
[1743420612336,0.31314616,82117.0,82116.0,0.25314456]
[1743420612513,0.01314616,82117.0,82116.0,0.25314456]
[1743420613118,0.01214616,82117.0,82116.0,0.25314456]
[1743420613308,0.3,82122.0,82117.0,0.0813]
[1743420613551,0.01210576,82122.0,82119.0,0.0813]
[1743420613759,0.31210576,82122.0,82121.0,0.08]
[1743420613911,0.243531,82125.0,82121.0,0.08]
[1743420614303,0.3,82122.0,82121.0,0.08]
[1743420614505,0.302,82122.0,82121.0,0.08]
[1743420615135,0.31608018,82122.0,82121.0,0.08]
[1743420615531,0.01408018,82122.0,82121.0,0.08]
[1743420615739,0.01208018,82122.0,82121.0,0.08]
[1743420615936,0.002,82122.0,82121.0,0.08]
[1743420616164,0.557717,82122.0,82121.0,0.08]
[1743420616826,0.54554,82122.0,82121.0,0.08]
[1743420616966,0.302,82122.0,82121.0,0.08462731]
[1743420617167,0.302,82122.0,82121.0,0.08]
[1743420617567,0.31445749,82122.0,82121.0,0.20260386]
[1743420617768,0.31645749,82122.0,82121.0,0.20718447]
[1743420618947,0.31445749,82122.0,82121.0,0.20718447]
[1743420619385,0.31545749,82122.0,82121.0,0.20718447]
[1743420620410,0.31345749,82122.0,82121.0,0.20718447]
[1743420620817,0.55799749,82122.0,82121.0,0.22690061]
[1743420621748,0.57017449,82122.0,82121.0,0.22690061]
[1743420622562,0.57017449,82122.0,82121.0,0.08458061]
[1743420623014,0.57017449,82122.0,82121.0,0.08]
[1743420623150,0.57017449,82122.0,82121.0,0.08454269]
[1743420624297,0.55799749,82122.0,82121.0,0.08454269]
[1743420624502,0.57017449,82122.0,82121.0,0.08454269]
[1743420627701,0.57017449,82122.0,82121.0,0.08]
[1743420630087,0.255731,82117.0,82116.0,0.0021407]
[1743420630261,0.555731,82117.0,82116.0,0.0021407]
[1743420631365,0.59374697,82117.0,82116.0,0.0021407]
[1743420632000,0.94535797,82117.0,82116.0,0.0021407]
[1743420632202,1.06796183,82117.0,82116.0,0.0021407]
[1743420633123,1.08250268,82117.0,82116.0,0.0021407]
[1743420633802,1.08350268,82117.0,82116.0,0.0021407]
[1743420636264,0.96089882,82117.0,82116.0,0.0021407]
[1743420636557,0.59474697,82117.0,82116.0,0.0021407]
[1743420636976,0.556731,82117.0,82116.0,0.0021407]
[1743420641059,0.301,82117.0,82116.0,0.0021407]
[1743420641214,0.544554,82117.0,82116.0,0.0021407]
[1743420641416,0.556731,82117.0,82116.0,0.0021407]
[1743420646153,0.301,82117.0,82116.0,0.0021407]
[1743420646331,0.301,82117.0,82116.0,0.12474456]
[1743420646932,0.301,82117.0,82116.0,0.19994456]
[1743420648033,0.544554,82117.0,82116.0,0.19994456]
[1743420649141,0.301,82117.0,82116.0,0.19994456]
[1743420649305,0.544554,82117.0,82116.0,0.19994456]
[1743420649962,0.556731,82117.0,82116.0,0.19994456]
[1743420650531,0.556731,82117.0,82116.0,0.0773407]
[1743420653582,0.556731,82117.0,82116.0,0.0021407]
[1743420655504,0.301,82117.0,82116.0,0.0021407]
[1743420655705,0.544554,82117.0,82116.0,0.0021407]
[1743420656296,0.556731,82117.0,82116.0,0.0021407]
[1743420656494,0.301,82117.0,82116.0,0.0021407]
[1743420656821,0.544554,82117.0,82116.0,0.0021407]
[1743420657022,0.301,82117.0,82116.0,0.0021407]
[1743420657320,0.301,82117.0,82116.0,0.25294456]
[1743420657805,0.001,82117.0,82116.0,0.25294456]
[1743420660455,0.0471,82151.0,82117.0,0.0759]
[1743420660656,0.243502,82135.0,82120.0,0.0451]
[1743420660882,0.243504,82134.0,82122.0,0.0759]
[1743420661091,0.243502,82135.0,82124.0,0.0759]
[1743420661287,0.3,82134.0,82125.0,0.12260386]
[1743420661657,0.543507,82134.0,82125.0,0.12260386]
[1743420661879,0.012175,82135.0,82124.0,0.0759]
[1743420661880,0.243522,82128.0,82124.0,0.0759]
[1743420662064,0.255707,82125.0,82124.0,0.0759]
[1743420662456,0.255707,82125.0,82124.0,0.10010334]
[1743420664190,0.255728,82118.0,82117.0,0.0775]
[1743420664621,0.555728,82118.0,82117.0,0.0775]
[1743420664817,0.555728,82118.0,82117.0,0.10210202]
[1743420665220,0.3,82118.0,82117.0,0.10210202]
[1743420665423,0.543551,82118.0,82117.0,0.10210202]
[1743420666014,0.31190997,82118.0,82117.0,0.10210202]
[1743420666897,0.55546097,82118.0,82117.0,0.10210202]
[1743420667101,0.56763797,82118.0,82117.0,0.10210202]
[1743420669750,0.55546097,82118.0,82117.0,0.10210202]
[1743420670480,0.31190997,82118.0,82117.0,0.10210202]
[1743420670894,0.3,82118.0,82117.0,0.22470588]
[1743420675317,0.15867651,82130.0,82118.0,0.0497]
[1743420675470,0.26256596,82136.0,82120.0,0.0806]
[1743420675670,0.03798896,82135.0,82122.0,0.0774]
[1743420675870,0.26256396,82136.0,82124.0,0.0774]
[1743420676074,0.27459135,82136.0,82125.0,0.12260386]
[1743420676298,0.57459335,82136.0,82125.0,0.12260386]
[1743420676505,0.002,82130.0,82125.0,0.12260386]
[1743420676714,0.004,82130.0,82125.0,0.12260386]
[1743420676954,0.002,82130.0,82127.0,0.081]
[1743420677082,0.002,82130.0,82128.0,0.12260386]
[1743420677286,0.3,82134.0,82128.0,0.12260386]
[1743420677507,0.543504,82134.0,82128.0,0.12260386]
[1743420677711,0.002,82130.0,82128.0,0.12260386]
[1743420678087,0.543504,82134.0,82128.0,0.12260386]
[1743420678636,0.543504,82134.0,82129.0,0.02437718]
[1743420678863,0.543504,82134.0,82130.0,0.12260386]
[1743420678977,0.31202739,82136.0,82130.0,0.12260386]
[1743420679176,0.01202739,82136.0,82130.0,0.12260386]
[1743420679394,0.243499,82136.0,82130.0,0.12260386]
[1743420679623,0.3,82134.0,82130.0,0.12260386]
[1743420680028,0.546506,82134.0,82130.0,0.12260386]
[1743420680229,0.543504,82134.0,82130.0,0.12260386]
[1743420680670,0.3,82134.0,82130.0,0.12260386]
[1743420681062,0.25577676,82136.0,82130.0,0.12260386]
[1743420681284,0.003,82134.0,82130.0,0.12260386]
[1743420681467,0.006,82134.0,82130.0,0.12260386]
[1743420681894,0.003,82134.0,82130.0,0.12260386]
[1743420682068,0.303,82134.0,82130.0,0.12260386]
[1743420682451,0.3,82134.0,82130.0,0.12260386]
[1743420683057,0.3,82135.0,82130.0,0.12260386]
[1743420683258,0.003,82134.0,82130.0,0.12260386]
[1743420683838,0.3,82133.0,82130.0,0.12260386]
[1743420684047,0.006,82134.0,82130.0,0.12260386]
[1743420684504,0.3,82133.0,82130.0,0.12260386]
[1743420684661,0.243507,82133.0,82130.0,0.12260386]
[1743420684859,0.558679,82134.0,82130.0,0.12260386]
[1743420685082,0.002,82133.0,82130.0,0.12260386]
[1743420685484,0.245508,82133.0,82130.0,0.12260386]
[1743420685686,0.002,82133.0,82130.0,0.12260386]
[1743420686460,0.004,82133.0,82130.0,0.12260386]
[1743420686659,0.247507,82133.0,82130.0,0.12260386]
[1743420686863,0.245507,82133.0,82130.0,0.12260386]
[1743420687642,0.3,82131.0,82130.0,0.12260386]
[1743420687856,0.012175,82130.0,82129.0,0.02437718]
[1743420688063,0.255691,82130.0,82129.0,0.28914104]
[1743420688282,0.25572,82121.0,82120.0,0.0824]
[1743420688486,0.55572,82121.0,82120.0,0.34716386]
[1743420688891,0.3,82121.0,82120.0,0.34716386]
[1743420689332,0.3,82121.0,82120.0,0.37179806]
[1743420695312,0.3,82121.0,82120.0,0.22963806]
[1743420695529,0.25569,82132.0,82120.0,0.22963806]
[1743420695530,0.243479,82143.0,82120.0,0.37179806]
[1743420695738,0.243488,82140.0,82123.0,0.0815]
[1743420695935,0.03801749,82138.0,82125.0,0.0815]
[1743420696147,0.01195702,82139.0,82127.0,0.0815]
[1743420696355,0.3,82144.0,82129.0,0.0815]
[1743420696559,0.543477,82144.0,82131.0,0.0815]
[1743420696820,0.006,82136.0,82132.0,0.12503857]
[1743420697063,0.006,82136.0,82133.0,0.0767]
[1743420697330,0.543481,82142.0,82134.0,0.26476386]
[1743420697501,0.001,82139.0,82134.0,0.26476386]
[1743420697707,0.3,82142.0,82134.0,0.26476386]
[1743420698023,0.26772266,82144.0,82134.0,0.26476386]
[1743420698208,0.3,82142.0,82134.0,0.26476386]
[1743420698572,0.3,82142.0,82135.0,0.02395222]
[1743420698911,0.543482,82142.0,82136.0,0.12260386]
[1743420699298,0.3,82138.0,82136.0,0.12260386]
[1743420700547,0.3,82141.0,82136.0,0.12260386]
[1743420700770,0.001,82138.0,82136.0,0.12260386]
[1743420701161,0.002,82138.0,82136.0,0.12260386]
[1743420702147,0.001,82138.0,82136.0,0.12260386]
[1743420702785,0.301,82138.0,82136.0,0.12260386]
[1743420703189,0.302,82138.0,82136.0,0.12260386]
[1743420703834,0.302,82138.0,82136.0,0.26472386]
[1743420704584,0.002,82138.0,82136.0,0.26472386]
[1743420705619,0.302,82138.0,82136.0,0.26472386]
[1743420708288,0.002,82138.0,82136.0,0.26472386]
[1743420708936,0.302,82138.0,82136.0,0.26472386]
[1743420713351,0.002,82138.0,82136.0,0.26472386]
[1743420714659,0.002,82138.0,82137.0,0.12703478]
[1743420714859,0.002,82138.0,82137.0,0.24963864]
[1743420715062,0.002,82138.0,82137.0,0.24720386]
[1743420716323,0.001,82138.0,82137.0,0.24720386]
[1743420716747,0.01194911,82145.0,82138.0,0.083]
[1743420717023,0.24345,82153.0,82139.0,0.12260386]
[1743420717791,0.3,82149.0,82139.0,0.12260386]
[1743420719120,0.3,82149.0,82140.0,0.14208]
[1743420719334,0.3,82149.0,82148.0,0.02452789]
[1743420719588,0.3,82149.0,82148.0,0.14713175]
[1743420720511,0.301,82149.0,82148.0,0.14713175]
[1743420720721,0.302,82149.0,82148.0,0.14713175]
[1743420721074,0.301,82149.0,82148.0,0.14713175]
[1743420721527,0.302,82149.0,82148.0,0.14713175]
[1743420723184,0.557633,82149.0,82148.0,0.02452789]
[1743420724018,0.24546,82149.0,82148.0,0.02452789]
[1743420724872,0.00189914,82149.0,82148.0,0.14713175]
[1743420725199,0.00189914,82149.0,82148.0,0.22523175]
[1743420732136,0.30189914,82149.0,82148.0,0.14713175]
[1743420732455,0.54535914,82149.0,82148.0,0.14713175]
[1743420732663,0.30189914,82149.0,82148.0,0.14713175]
[1743420733830,0.3,82142.0,82141.0,0.63208]
[1743420734156,0.555654,82142.0,82141.0,0.63208]
[1743420734470,0.3,82135.0,82134.0,0.02410637]
[1743420734693,0.3,82135.0,82134.0,0.14671023]
[1743420734894,0.3,82135.0,82134.0,0.22811023]
[1743420735514,0.255636,82148.0,82134.0,0.22811023]
[1743420735515,0.3,82146.0,82134.0,0.22811023]
[1743420735738,0.3,82146.0,82135.0,0.12260386]
[1743420736154,0.3,82146.0,82136.0,0.00243467]
[1743420736437,0.3,82146.0,82137.0,0.12260386]
[1743420736660,0.3,82150.0,82139.0,0.0797]
[1743420736907,0.70197685,82150.0,82140.0,0.12260386]
[1743420737175,0.001,82146.0,82140.0,0.12260386]
[1743420737604,0.3,82148.0,82140.0,0.12260386]
[1743420737849,0.001,82146.0,82140.0,0.12260386]
[1743420738052,0.3,82148.0,82140.0,0.12260386]
[1743420738485,0.3,82144.0,82140.0,0.12260386]
[1743420738657,0.001,82146.0,82140.0,0.12260386]
[1743420738658,0.301,82146.0,82140.0,0.12260386]
[1743420739159,0.544469,82146.0,82140.0,0.12260386]
[1743420739361,0.255649,82144.0,82140.0,0.12260386]
[1743420739510,0.3,82143.0,82140.0,0.12260386]
[1743420740588,0.3,82144.0,82140.0,0.12260386]
[1743420740791,0.543475,82144.0,82140.0,0.12360386]
[1743420741588,0.3,82141.0,82140.0,0.12260386]
[1743420743612,0.243461,82149.0,82140.0,0.12260386]
[1743420743613,0.011878,82153.0,82141.0,0.0824]
[1743420743813,0.011878,82153.0,82143.0,0.0824]
[1743420743814,0.3,82152.0,82143.0,0.0824]
[1743420744043,0.3,82152.0,82144.0,0.12260386]
[1743420744241,0.543453,82152.0,82144.0,0.12260386]
[1743420744461,0.3,82150.0,82144.0,0.12260386]
[1743420744664,0.54346,82150.0,82145.0,0.142]
[1743420744865,0.243468,82146.0,82145.0,0.12260386]
[1743420745018,0.3,82145.0,82140.0,0.001]
[1743420745223,0.3,82142.0,82141.0,0.26460386]
[1743420745518,0.3,82142.0,82141.0,0.28925485]
[1743420746642,0.3,82142.0,82141.0,0.02465099]
[1743420746643,0.555654,82142.0,82141.0,0.02465099]
[1743420746844,0.555654,82142.0,82133.0,0.142]
[1743420746845,0.555672,82136.0,82133.0,0.142]
[1743420747820,0.555672,82136.0,82134.0,0.02395351]
[1743420748033,0.555672,82136.0,82135.0,0.63308]
[1743420748177,0.555672,82136.0,82135.0,0.63408]
[1743420749222,0.555672,82136.0,82135.0,0.63308]
[1743420749943,0.56483846,82136.0,82135.0,0.63308]
[1743420752208,0.56483846,82136.0,82135.0,0.001]
[1743420752981,0.60269635,82136.0,82135.0,0.001]
[1743420753402,0.555701,82127.0,82126.0,0.02482194]
[1743420754108,0.555731,82117.0,82114.0,0.63212]
[1743420754289,0.555731,82117.0,82115.0,0.02458048]
[1743420754494,0.555731,82117.0,82116.0,0.0021407]
[1743420755624,0.67833486,82117.0,82116.0,0.0031407]
[1743420755739,0.69740394,82117.0,82116.0,0.0031407]
[1743420756638,0.57480008,82117.0,82116.0,0.0031407]
[1743420756874,0.57480008,82117.0,82116.0,0.0021407]
[1743420757317,1.02232793,82117.0,82116.0,0.0021407]
[1743420757515,0.63624093,82117.0,82116.0,0.0021407]
[1743420757718,0.555778,82102.0,82101.0,0.004]
[1743420757921,0.3,82102.0,82101.0,0.004]
[1743420758538,0.3,82102.0,82101.0,0.02850883]
[1743420758748,0.543599,82102.0,82101.0,0.02850883]
[1743420758879,0.555778,82102.0,82101.0,0.02850883]
[1743420759879,0.31241131,82102.0,82101.0,0.02850883]
[1743420760659,0.56818931,82102.0,82101.0,0.02850883]
[1743420762157,0.56818931,82102.0,82101.0,0.004]
[1743420763268,0.58726034,82102.0,82101.0,0.004]
[1743420766291,0.56818931,82102.0,82101.0,0.004]
[1743420772461,0.67951828,82102.0,82101.0,0.004]
[1743420772661,1.14101828,82102.0,82101.0,0.004]
[1743420772880,1.22041828,82102.0,82101.0,0.004]
[1743420773089,1.87036728,82102.0,82101.0,0.004]
[1743420773434,1.79169628,82102.0,82101.0,0.004]
[1743420773611,1.81076997,82102.0,82101.0,0.004]
[1743420774035,1.94791468,82102.0,82101.0,0.004]
[1743420774304,1.94791468,82102.0,82078.0,0.7099]
[1743420774305,0.555825,82087.0,82078.0,0.7099]
[1743420775027,0.57490123,82087.0,82078.0,0.7099]
[1743420775782,0.57490123,82087.0,82086.0,0.00246919]
[1743420776630,0.555825,82087.0,82086.0,0.00246919]
[1743420777787,0.555872,82072.0,82071.0,0.004]
[1743420777985,0.555872,82072.0,82071.0,0.00414079]
[1743420778783,1.341874,82072.0,82071.0,0.00414079]
[1743420778998,1.755274,82072.0,82071.0,0.00414079]
[1743420779201,0.555919,82057.0,82056.0,0.002]
[1743420779391,0.681419,82057.0,82056.0,0.002]
[1743420779591,0.555965,82042.0,82033.0,0.0831]
[1743420780055,0.555965,82042.0,82041.0,0.00414308]
[1743420780562,0.56505652,82042.0,82041.0,0.00414308]
[1743420781840,0.3,82042.0,82041.0,0.00414308]
[1743420782300,0.312188,82042.0,82041.0,0.00414308]
[1743420782523,0.32461954,82042.0,82041.0,0.00414308]
[1743420787772,0.56839654,82042.0,82041.0,0.00414308]
[1743420790374,0.56939654,82042.0,82041.0,0.00414308]
[1743420791218,0.58848224,82042.0,82041.0,0.00414308]
[1743420791938,0.58948224,82042.0,82041.0,0.00414308]
[1743420794420,0.33351724,82042.0,82041.0,0.00414308]
[1743420794662,0.55820854,82042.0,82041.0,0.08734308]
[1743420794768,0.55820854,82042.0,82041.0,0.25674694]
[1743420794769,0.002,82042.0,82041.0,0.25674694]
[1743420795370,0.01429368,82042.0,82041.0,0.25674694]
[1743420795686,0.001,82042.0,82041.0,0.25674694]
[1743420796733,0.01198292,82043.0,82041.0,0.25674694]
[1743420796972,0.3,82049.0,82042.0,0.12260386]
[1743420797176,0.01237776,82048.0,82042.0,0.12260386]
[1743420797385,0.3,82049.0,82042.0,0.12260386]
[1743420797740,0.31229002,82049.0,82042.0,0.12260386]
[1743420797946,0.01229002,82049.0,82042.0,0.12260386]
[1743420798144,0.3,82050.0,82042.0,0.12260386]
[1743420798964,0.243759,82049.0,82047.0,0.02484666]
[1743420799164,0.3,82048.0,82041.0,0.13414308]
[1743420799363,0.3,82046.0,82045.0,0.02436556]
[1743420799566,0.3,82046.0,82045.0,0.14696942]
[1743420800360,0.55606817,82050.0,82045.0,0.14696942]
[1743420800557,0.55606817,82050.0,82046.0,0.12260386]
[1743420800834,0.31231317,82050.0,82046.0,0.12260386]
[1743420801259,0.55606817,82050.0,82046.0,0.12260386]
[1743420801467,0.55606817,82050.0,82041.0,0.13414308]
[1743420801468,0.243774,82043.0,82041.0,0.08734308]
[1743420801599,0.243774,82043.0,82041.0,0.20994694]
[1743420801815,0.3,82044.0,82041.0,0.20994694]
[1743420802038,0.3,82044.0,82042.0,0.02391864]
[1743420802388,0.543772,82044.0,82042.0,0.02391864]
[1743420802619,0.243774,82043.0,82042.0,0.02391864]
[1743420802817,0.55596,82044.0,82042.0,0.02391864]
[1743420802818,0.3,82044.0,82042.0,0.02391864]
[1743420803023,0.012188,82046.0,82042.0,0.02391864]
[1743420803024,0.312188,82046.0,82042.0,0.02391864]
[1743420803388,0.3,82044.0,82042.0,0.02391864]
[1743420803940,0.543773,82044.0,82042.0,0.02391864]
[1743420804064,0.243774,82043.0,82042.0,0.02391864]
[1743420804832,0.555962,82043.0,82042.0,0.02391864]
[1743420805039,0.3,82043.0,82042.0,0.02391864]
[1743420805246,0.555962,82043.0,82042.0,0.02391864]
[1743420806682,0.555965,82042.0,82041.0,0.08734308]
[1743420806885,0.555965,82042.0,82041.0,0.00414308]
[1743420810503,0.67856886,82042.0,82041.0,0.00414308]
[1743420812187,0.555965,82042.0,82041.0,0.00414308]
[1743420812407,0.59378434,82042.0,82041.0,0.00414308]
[1743420812855,0.59478434,82042.0,82041.0,0.00414308]
[1743420813004,0.59378434,82042.0,82041.0,0.00414308]
[1743420813427,0.59578434,82042.0,82041.0,0.00414308]
[1743420814062,0.59778434,82042.0,82041.0,0.00414308]
[1743420815163,0.61687086,82042.0,82041.0,0.00414308]
[1743420816430,1.15287472,82042.0,82041.0,0.00414308]
[1743420816774,1.1337882,82042.0,82041.0,0.00414308]
[1743420816928,1.01118434,82042.0,82041.0,0.00414308]
[1743420819071,1.02572519,82042.0,82041.0,0.00414308]
[1743420822582,1.01118434,82042.0,82041.0,0.00414308]
[1743420824917,0.973365,82042.0,82041.0,0.00414308]
[1743420825567,0.99245096,82042.0,82041.0,0.00414308]
[1743420828186,0.004,82042.0,82041.0,0.08004308]
[1743420829437,0.002,82042.0,82041.0,0.08004308]
[1743420829878,0.002,82042.0,82041.0,0.20264694]
[1743420829879,0.001,82042.0,82041.0,0.20264694]
[1743420830079,0.002,82042.0,82041.0,0.20264694]
[1743420830282,0.001,82042.0,82041.0,0.24904694]
[1743420830482,0.012185,82063.0,82042.0,0.0803]
[1743420830612,0.40224385,82060.0,82044.0,0.0803]
[1743420830815,0.15851985,82060.0,82046.0,0.0771]
[1743420831024,0.15851985,82060.0,82041.0,0.05054308]
[1743420831025,0.255893,82067.0,82049.0,0.0771]
[1743420831222,0.255893,82067.0,82048.0,0.0455]
[1743420831223,0.3,82061.0,82051.0,0.0771]
[1743420831424,0.3,82061.0,82053.0,0.0771]
[1743420831638,0.00930092,82063.0,82055.0,0.0794]
[1743420831894,0.00930092,82063.0,82056.0,0.12260386]
[1743420832042,0.3,82061.0,82056.0,0.12260386]
[1743420832477,0.31205711,82061.0,82056.0,0.12260386]
[1743420832678,0.012186,82057.0,82056.0,0.12260386]
[1743420832879,0.557921,82056.0,82055.0,0.0794]
[1743420833179,0.243769,82045.0,82042.0,0.63296]
[1743420833524,0.243768,82045.0,82043.0,0.12260386]
[1743420833819,0.555951,82047.0,82044.0,0.0794]
[1743420833979,0.3,82047.0,82045.0,0.12260386]
[1743420834599,0.012188,82046.0,82045.0,0.12260386]
[1743420835043,0.543765,82046.0,82045.0,0.12260386]
[1743420835250,0.3,82046.0,82045.0,0.12260386]
[1743420835478,0.543765,82046.0,82045.0,0.12260386]
[1743420836084,0.3,82046.0,82045.0,0.12260386]
[1743420836815,0.31908329,82057.0,82046.0,0.0793]
[1743420837053,0.03126929,82057.0,82048.0,0.0811]
[1743420837303,0.012186,82056.0,82049.0,0.12260386]
[1743420837501,0.3,82053.0,82049.0,0.12260386]
[1743420837677,0.543745,82053.0,82049.0,0.12260386]
[1743420837834,0.012187,82052.0,82049.0,0.12260386]
[1743420838033,0.255934,82052.0,82049.0,0.12260386]
[1743420838232,0.3,82051.0,82049.0,0.12260386]
[1743420839181,0.3,82051.0,82050.0,0.0768]
[1743420839355,0.3,82056.0,82050.0,0.19940386]
[1743420839649,0.3,82056.0,82051.0,0.12260386]
[1743420839872,0.302,82056.0,82051.0,0.12260386]
[1743420840232,0.545738,82056.0,82051.0,0.12260386]
[1743420840413,0.3,82056.0,82051.0,0.12260386]
[1743420840614,0.243733,82057.0,82051.0,0.12260386]
[1743420840615,0.012186,82059.0,82051.0,0.12260386]
[1743420840814,0.14204,82083.0,82051.0,0.12260386]
[1743420840815,0.002,82056.0,82051.0,0.12260386]